bitfinex/quotes_BTCUSD_20250618
["timestamp","ask_amount","ask_price","bid_price","bid_amount"]
[1750256370592,4.90246919,105200.0,105190.0,0.36234516]
[1750256370855,4.90246919,105200.0,105190.0,0.35283874]
[1750256371112,4.88345806,105200.0,105190.0,0.35283874]
[1750256371336,4.63964907,105200.0,105190.0,0.38135746]
[1750256371769,4.64915423,105200.0,105190.0,0.38135746]
[1750256372193,4.63964898,105200.0,105190.0,0.38135746]
[1750256372404,4.65865939,105200.0,105190.0,0.38135746]
[1750256372667,4.63964898,105200.0,105190.0,0.38135746]
[1750256372887,4.65865948,105200.0,105190.0,0.38135746]
[1750256373100,4.86778467,105200.0,105190.0,0.38135755]
[1750256373315,4.86778467,105200.0,105190.0,0.39086352]
[1750256373533,4.630144,105200.0,105190.0,0.39086352]
[1750256374017,4.630144,105200.0,105190.0,0.48710528]
[1750256374265,4.63964907,105200.0,105190.0,0.48710528]
[1750256374702,4.630144,105200.0,105190.0,0.48710528]
[1750256375351,4.63964907,105200.0,105190.0,0.48710528]
[1750256375573,4.630144,105200.0,105190.0,0.48710528]
[1750256377315,4.63964898,105200.0,105190.0,0.48710528]
[1750256377525,4.630144,105200.0,105190.0,0.48710528]
[1750256378591,0.003,105200.0,105190.0,0.43390528]
[1750256378806,0.003,105200.0,105190.0,0.66350528]
[1750256380338,0.003,105200.0,105190.0,0.72660528]
[1750256380527,0.003,105200.0,105190.0,0.74114613]
[1750256382513,0.003,105200.0,105190.0,0.74102613]
[1750256382734,0.003,105200.0,105190.0,0.48710528]
[1750256382958,0.003,105200.0,105190.0,0.66338528]
[1750256383178,0.03151557,105200.0,105190.0,0.43390528]
[1750256383418,0.44064076,105200.0,105190.0,0.3863739]
[1750256383646,4.90396919,105200.0,105190.0,0.1532]
[1750256383870,4.90396919,105200.0,105190.0,0.13154645]
[1750256384091,4.92673734,105200.0,105190.0,0.10200645]
[1750256384340,4.92673734,105200.0,105190.0,0.03482]
[1750256384790,4.90060877,105180.0,105170.0,0.2817414]
[1750256385015,4.90060877,105180.0,105170.0,0.4579814]
[1750256385227,4.90060877,105180.0,105170.0,0.2817414]
[1750256385449,4.90060877,105180.0,105170.0,0.4579814]
[1750256385700,4.90060877,105180.0,105170.0,0.0001414]
[1750256385965,0.26257652,105170.0,105160.0,0.00331073]
[1750256386167,4.88972052,105170.0,105160.0,0.17951073]
[1750256386393,4.8576396,105160.0,105150.0,0.0533]
[1750256386608,4.8882396,105160.0,105150.0,0.0533]
[1750256386820,4.8882396,105160.0,105150.0,0.2295]
[1750256387318,4.8882396,105160.0,105150.0,0.27203404]
[1750256387319,4.66745277,105160.0,105150.0,0.27203404]
[1750256387535,4.68856851,105170.0,105160.0,0.2187135]
[1750256387754,0.20920383,105160.0,105150.0,0.51497611]
[1750256387968,0.20920383,105160.0,105150.0,0.0533]
[1750256387969,4.83834855,105160.0,105150.0,0.0533]
[1750256388232,4.8913396,105160.0,105150.0,0.0533]
[1750256388449,4.8913396,105160.0,105150.0,0.41966446]
[1750256388675,4.8913396,105160.0,105150.0,0.1998145]
[1750256388884,4.8913396,105160.0,105150.0,0.19981468]
[1750256389090,4.8893396,105160.0,105150.0,0.20932481]
[1750256389303,4.8893396,105160.0,105150.0,0.22834462]
[1750256389524,4.86664855,105160.0,105150.0,0.23134462]
[1750256389742,4.87615786,105160.0,105150.0,0.22183485]
[1750256390170,4.87615786,105160.0,105150.0,0.2408543]
[1750256390375,4.84585714,105160.0,105150.0,0.23134408]
[1750256390579,4.85536645,105160.0,105150.0,0.2218344]
[1750256390792,4.85536645,105160.0,105150.0,0.23134408]
[1750256391012,4.85813969,105160.0,105150.0,0.20281468]
[1750256391240,4.92179015,105160.0,105150.0,0.0031]
[1750256391457,4.88043038,105160.0,105150.0,0.0031]
[1750256391668,5.05655038,105160.0,105150.0,0.0031]
[1750256391877,4.88043038,105160.0,105150.0,0.0021]
[1750256392347,4.88043038,105160.0,105150.0,0.0001]
[1750256392551,4.88143038,105160.0,105150.0,0.1998145]
[1750256392766,4.6471619,105160.0,105150.0,0.21883395]
[1750256392981,4.66617962,105160.0,105150.0,0.21883395]
[1750256393398,4.65667022,105160.0,105150.0,0.21883395]
[1750256393621,4.86587504,105160.0,105150.0,0.20932436]
[1750256393839,4.83734882,105160.0,105150.0,0.19030446]
[1750256394052,4.85833969,105160.0,105150.0,0.1998145]
[1750256394267,4.63765277,105160.0,105150.0,0.21883395]
[1750256394477,4.65667094,105160.0,105150.0,0.21883395]
[1750256394701,4.85636663,105160.0,105150.0,0.20932436]
[1750256394912,4.87895786,105160.0,105150.0,0.1998145]
[1750256395131,4.86944891,105160.0,105150.0,0.0001]
[1750256395342,4.89273969,105160.0,105150.0,0.0001]
[1750256396468,0.06063246,105140.0,105130.0,0.51653825]
[1750256396687,4.68777646,105140.0,105130.0,0.3071614]
[1750256396897,4.67826543,105140.0,105130.0,0.3071614]
[1750256397109,4.63665431,105140.0,105130.0,0.3071614]
[1750256397340,4.64616471,105140.0,105130.0,0.3071614]
[1750256397576,4.63665431,105140.0,105130.0,0.3071614]
[1750256397784,4.85540942,105140.0,105130.0,0.28861019]
[1750256398000,4.86658853,105140.0,105130.0,0.00047166]
[1750256398424,4.85707768,105140.0,105130.0,0.00047166]
[1750256398638,4.88777768,105140.0,105130.0,0.00047166]
[1750256398871,0.2298525,105130.0,105120.0,0.19025298]
[1750256399090,4.84808465,105130.0,105110.0,0.20918877]
[1750256399313,4.67816905,105120.0,105110.0,0.21870243]
[1750256399527,4.87794055,105120.0,105110.0,0.19967584]
[1750256399743,4.93373427,105120.0,105110.0,0.19967584]
[1750256399978,4.84838272,105120.0,105110.0,0.21870243]
[1750256400227,4.81352016,105120.0,105110.0,0.21870243]
[1750256400450,4.63665711,105110.0,105100.0,0.44759112]
[1750256400879,4.77328668,105110.0,105100.0,0.44759112]
[1750256401089,4.76377339,105110.0,105100.0,0.44759112]
[1750256401311,4.75426028,105110.0,105100.0,0.44759112]
[1750256401548,0.12711628,105110.0,105100.0,0.31511288]
[1750256401771,0.12711628,105110.0,105100.0,0.60593288]
[1750256401995,0.12711628,105110.0,105100.0,0.62147373]
[1750256402219,0.12711628,105110.0,105100.0,0.97982456]
[1750256402440,0.20047078,105140.0,105130.0,0.21877565]
[1750256402654,0.00047078,105140.0,105130.0,0.62334824]
[1750256403093,0.00047078,105140.0,105130.0,0.63788909]
[1750256403326,0.00047078,105140.0,105130.0,0.97788909]
[1750256403846,0.00147078,105140.0,105130.0,0.97788909]
[1750256404063,0.02456247,105190.0,105180.0,0.20916404]
[1750256404283,0.00014125,105190.0,105180.0,0.55139663]
[1750256405170,0.00014125,105190.0,105180.0,0.55138071]
[1750256405423,0.00014125,105190.0,105180.0,0.58468071]
[1750256405619,0.00014125,105190.0,105180.0,0.97072156]
[1750256406057,0.00014125,105190.0,105180.0,0.97071194]
[1750256406278,0.00014125,105190.0,105180.0,0.74207194]
[1750256406503,0.00014125,105190.0,105180.0,0.76337194]
[1750256406741,0.00014125,105190.0,105180.0,0.93913194]
[1750256407379,0.00014125,105190.0,105180.0,0.97043194]
[1750256407617,0.00114125,105190.0,105180.0,0.97643194]
[1750256408061,0.00114125,105190.0,105180.0,0.74787194]
[1750256408275,0.00014125,105190.0,105180.0,0.71657194]
[1750256408487,0.00014125,105190.0,105180.0,0.95009194]
[1750256408700,0.00014125,105190.0,105180.0,0.98247577]
[1750256409781,0.00014125,105190.0,105180.0,1.03247577]
[1750256411078,0.00014125,105190.0,105180.0,1.08247577]
[1750256412030,0.00014125,105190.0,105180.0,0.80671577]
[1750256412248,0.00014125,105190.0,105180.0,0.98235577]
[1750256412464,0.00014125,105190.0,105180.0,1.08235577]
[1750256414005,0.00014125,105190.0,105180.0,1.50465249]
[1750256414219,0.00014125,105190.0,105180.0,1.5046162]
[1750256414431,0.00014125,105190.0,105180.0,1.08231948]
[1750256415309,0.00014125,105190.0,105180.0,1.07731948]
[1750256415754,5e-05,105240.0,105230.0,0.21856775]
[1750256415963,0.00019133,105240.0,105230.0,0.78872234]
[1750256416608,0.00019133,105240.0,105230.0,0.77140951]
[1750256417286,0.00219133,105240.0,105230.0,0.85274201]
[1750256417509,0.00219133,105240.0,105230.0,0.90274201]
[1750256417728,0.00219133,105240.0,105230.0,1.30728286]
[1750256417969,0.00219133,105240.0,105230.0,0.97904286]
[1750256418184,0.00219133,105240.0,105230.0,0.68658286]
[1750256418405,0.00019133,105240.0,105230.0,0.59588951]
[1750256418626,4.7196404,105240.0,105230.0,0.28108]
[1750256418847,4.99632997,105240.0,105230.0,0.24281986]
[1750256419078,5.00583206,105240.0,105230.0,0.05476]
[1750256419342,5.00583206,105240.0,105230.0,0.002]
[1750256419343,4.99633034,105240.0,105230.0,0.002]
[1750256419560,4.86730957,105230.0,105220.0,0.22816]
[1750256419786,4.86730957,105230.0,105220.0,0.25234182]
[1750256420001,4.89790957,105230.0,105220.0,0.05276]
[1750256420214,4.89790957,105230.0,105220.0,0.25234173]
[1750256420426,4.88840613,105230.0,105220.0,0.20908562]
[1750256420659,4.90741148,105230.0,105220.0,0.38448562]
[1750256420884,4.89790921,105230.0,105220.0,0.1754]
[1750256421326,0.25467793,105220.0,105200.0,0.19009599]
[1750256421556,0.25090256,105240.0,105200.0,0.26634819]
[1750256421827,4.7200518,105230.0,105220.0,0.22808323]
[1750256422043,4.71054881,105230.0,105220.0,0.22808323]
[1750256422256,4.73905706,105230.0,105220.0,0.22808332]
[1750256422478,4.70104636,105230.0,105220.0,0.23758658]
[1750256422693,4.70104618,105230.0,105220.0,0.46570658]
[1750256422903,4.70104618,105230.0,105220.0,0.56194834]
[1750256423136,4.691544,105230.0,105220.0,0.56194834]
[1750256423346,4.627144,105230.0,105220.0,0.56194834]
[1750256423575,0.03819731,105240.0,105230.0,0.21856775]
[1750256423576,0.00019133,105240.0,105230.0,0.21856775]
[1750256423812,0.00019133,105240.0,105230.0,0.32935036]
[1750256424040,0.00019133,105240.0,105230.0,0.66935036]
[1750256424486,0.00019133,105240.0,105230.0,0.70135036]
[1750256424945,0.00019133,105240.0,105230.0,0.73445036]
[1750256425186,0.00019133,105240.0,105230.0,0.73945036]
[1750256425905,0.00019133,105240.0,105230.0,0.70635036]
[1750256426132,0.00019133,105240.0,105230.0,0.70235036]
[1750256426348,0.00019133,105240.0,105230.0,0.70835036]
[1750256426555,0.00019133,105240.0,105230.0,0.73875036]
[1750256427022,0.00019133,105240.0,105230.0,0.67835036]
[1750256427231,0.00019133,105240.0,105230.0,0.90599036]
[1750256428090,0.00019133,105240.0,105230.0,0.90299036]
[1750256428308,0.00019133,105240.0,105230.0,0.89899036]
[1750256428530,0.00019133,105240.0,105230.0,0.90299036]
[1750256429414,0.00019133,105240.0,105230.0,0.90224963]
[1750256431470,0.00019133,105240.0,105230.0,0.93414963]
[1750256431682,0.00019133,105240.0,105230.0,0.96594963]
[1750256432111,0.00019133,105240.0,105230.0,0.70650963]
[1750256432329,0.00019133,105240.0,105230.0,0.90212963]
[1750256433400,0.00019133,105240.0,105230.0,0.93302963]
[1750256433857,0.00019133,105240.0,105230.0,1.01342963]
[1750256434989,0.00019133,105240.0,105230.0,1.01338963]
[1750256435224,0.00019133,105240.0,105230.0,1.06338963]
[1750256435449,5e-05,105250.0,105240.0,0.67308782]
[1750256435677,0.13521131,105290.0,105280.0,0.57300479]
[1750256435896,0.01084524,105290.0,105280.0,1.15570655]
[1750256436115,0.01131643,105290.0,105280.0,1.16210655]
[1750256436347,0.01131643,105290.0,105280.0,0.98492655]
[1750256436561,0.01131643,105290.0,105280.0,1.26236655]
[1750256437009,0.01131643,105290.0,105280.0,1.21236655]
[1750256437295,0.01131643,105290.0,105280.0,1.16236655]
[1750256437569,0.01131643,105290.0,105280.0,1.21236655]
[1750256437785,0.01131643,105290.0,105280.0,1.12492655]
[1750256438267,0.01131643,105290.0,105280.0,0.92922655]
[1750256438503,0.01131643,105290.0,105280.0,1.26262655]
[1750256438743,0.01131643,105290.0,105280.0,1.29442655]
[1750256438990,0.01131643,105290.0,105280.0,1.28842655]
[1750256439474,0.01131643,105290.0,105280.0,1.29242655]
[1750256439726,0.00196178,105330.0,105320.0,0.21838098]
[1750256439952,0.0021031,105330.0,105320.0,0.54194274]
[1750256440397,0.00014132,105330.0,105320.0,0.54194274]
[1750256441508,0.00014132,105330.0,105320.0,0.31462274]
[1750256441730,0.04203448,105330.0,105320.0,0.54190274]
[1750256441945,0.04203457,105330.0,105320.0,0.31462274]
[1750256442172,0.06102143,105330.0,105320.0,0.54190274]
[1750256442400,0.05152791,105330.0,105320.0,0.54190274]
[1750256442629,0.08182791,105330.0,105320.0,0.54190274]
[1750256442855,0.09132134,105330.0,105320.0,0.54190274]
[1750256443066,4.72795895,105330.0,105320.0,0.5323685]
[1750256443272,4.72795958,105330.0,105320.0,0.45511558]
[1750256443475,4.68998532,105330.0,105320.0,0.22787558]
[1750256443694,4.69947857,105330.0,105320.0,0.45511558]
[1750256443922,4.68998532,105330.0,105320.0,0.55135734]
[1750256444136,0.03254132,105330.0,105320.0,0.55135734]
[1750256444347,4.66913652,105340.0,105330.0,0.21836025]
[1750256444551,4.68812165,105340.0,105330.0,0.21836025]
[1750256444765,4.68812156,105340.0,105330.0,0.21836025]
[1750256444972,4.71267812,105340.0,105330.0,0.21836025]
[1750256445180,4.70318533,105340.0,105330.0,0.21836025]
[1750256445390,4.71267812,105340.0,105330.0,0.21836025]
[1750256445596,4.70318533,105340.0,105330.0,0.21836025]
[1750256445803,4.68420056,105340.0,105330.0,0.21836025]
[1750256446012,4.68420056,105340.0,105330.0,0.31460201]
[1750256446469,4.65170056,105340.0,105330.0,0.31460201]
[1750256446859,0.02455656,105340.0,105330.0,0.31460201]
[1750256447274,4.66973535,105350.0,105340.0,0.2183395]
[1750256447471,4.6887185,105350.0,105340.0,0.3931795]
[1750256447688,4.68871841,105350.0,105340.0,0.3931795]
[1750256448110,4.660244,105350.0,105340.0,0.48942126]
[1750256448322,4.66973535,105350.0,105340.0,0.48942126]
[1750256448539,4.69821066,105350.0,105340.0,0.48942126]
[1750256448769,4.69821066,105350.0,105330.0,0.19937294]
[1750256448770,0.01898531,105340.0,105330.0,0.19937294]
[1750256449086,4.8804054,105340.0,105310.0,0.26615153]
[1750256449300,4.90840488,105330.0,105320.0,0.42651032]
[1750256449501,4.69953734,105330.0,105320.0,0.4265105]
[1750256449712,4.71852474,105330.0,105320.0,0.45499403]
[1750256449927,4.690044,105330.0,105320.0,0.45499403]
[1750256450184,4.69340692,105350.0,105340.0,0.2183395]
[1750256450471,4.68391548,105350.0,105340.0,0.48938126]
[1750256450726,4.65201548,105350.0,105340.0,0.48938126]
[1750256451353,4.69330683,105350.0,105340.0,0.48938126]
[1750256451578,4.70279827,105350.0,105340.0,0.48938126]
[1750256451814,4.68381548,105350.0,105340.0,0.31458126]
[1750256452029,4.68381548,105350.0,105340.0,0.54170126]
[1750256452236,4.69330692,105350.0,105340.0,0.54170126]
[1750256452656,4.72178196,105350.0,105340.0,0.54170126]
[1750256452865,4.69330692,105350.0,105340.0,0.54170126]
[1750256453294,4.70279845,105350.0,105340.0,0.54170126]
[1750256453720,4.91162551,105350.0,105340.0,0.20884707]
[1750256453938,4.88647584,105340.0,105330.0,0.1993571]
[1750256454179,4.91767711,105340.0,105330.0,0.2088508]
[1750256454420,4.91767711,105340.0,105330.0,0.4356508]
[1750256454629,4.68752474,105330.0,105320.0,0.2183788]
[1750256454842,4.68752474,105330.0,105320.0,0.4451388]
[1750256455048,4.68752474,105330.0,105320.0,0.2704188]
[1750256455265,4.68752474,105330.0,105320.0,0.4451388]
[1750256455475,4.69701808,105330.0,105320.0,0.4451388]
[1750256455721,4.69701799,105330.0,105320.0,0.4451388]
[1750256455935,4.6970179,105330.0,105320.0,0.4451388]
[1750256456140,4.7065116,105330.0,105320.0,0.4451388]
[1750256456360,4.659044,105330.0,105320.0,0.4451388]
[1750256456574,0.07269234,105340.0,105330.0,0.21836025]
[1750256456862,4.659144,105340.0,105330.0,0.21836025]
[1750256457077,4.70796288,105350.0,105340.0,0.2183395]
[1750256457294,0.30796847,105350.0,105340.0,0.2183395]
[1750256457514,0.27949406,105350.0,105340.0,0.2183395]
[1750256457729,0.24749406,105350.0,105340.0,0.2183395]
[1750256457948,0.25698553,105350.0,105340.0,0.2183395]
[1750256458184,0.27596931,105350.0,105340.0,0.2183395]
[1750256458408,0.25698544,105350.0,105340.0,0.31458126]
[1750256458652,0.247494,105350.0,105340.0,0.31458126]
[1750256459081,0.25698535,105350.0,105340.0,0.31458126]
[1750256459291,0.247494,105350.0,105340.0,0.54130126]
[1750256459720,0.047494,105350.0,105340.0,0.54130126]
[1750256460150,0.02983609,105350.0,105340.0,0.54130126]
[1750256460359,0.04750826,105350.0,105340.0,0.54130126]
[1750256460582,0.00496461,105350.0,105340.0,0.54130126]
[1750256460796,0.00496461,105350.0,105340.0,0.62124211]
[1750256461005,6e-05,105360.0,105350.0,0.26295962]
[1750256461226,6e-05,105360.0,105350.0,0.58732138]
[1750256461665,6e-05,105360.0,105350.0,0.61972138]
[1750256462350,6e-05,105360.0,105350.0,0.92261358]
[1750256462563,6e-05,105360.0,105350.0,0.92461358]
[1750256463465,6e-05,105360.0,105350.0,0.62172138]
[1750256463678,6e-05,105360.0,105350.0,0.58932138]
[1750256463900,6e-05,105360.0,105350.0,0.81596138]
[1750256464102,6e-05,105360.0,105350.0,0.84676138]
[1750256465183,6e-05,105360.0,105350.0,1.18676138]
[1750256465387,6e-05,105360.0,105350.0,1.18671984]
[1750256466474,6e-05,105360.0,105350.0,0.96007984]
[1750256466912,6e-05,105360.0,105350.0,0.59667899]
[1750256467143,0.20886671,105360.0,105350.0,0.533629]
[1750256467371,4.92642445,105360.0,105350.0,0.34961729]
[1750256467583,4.91693364,105360.0,105350.0,0.05404]
[1750256467794,4.91693364,105360.0,105350.0,0.22852]
[1750256468424,4.91693364,105360.0,105350.0,0.22652]
[1750256468633,4.91685561,105360.0,105350.0,0.22652]
[1750256468840,4.91685561,105360.0,105340.0,0.2703795]
[1750256468841,0.24082679,105350.0,105340.0,0.2703795]
[1750256469055,0.26870527,105350.0,105340.0,0.56008621]
[1750256469267,0.25568896,105350.0,105340.0,0.55059378]
[1750256469482,4.90467633,105350.0,105340.0,0.36662181]
[1750256469732,4.93627633,105350.0,105340.0,0.31458181]
[1750256469965,4.92678498,105350.0,105340.0,0.54110181]
[1750256470174,4.69584891,105350.0,105340.0,0.56008676]
[1750256470354,0.22721329,105350.0,105340.0,0.56008676]
[1750256470559,4.6963629,105350.0,105340.0,0.14828176]
[1750256470762,4.91800627,105350.0,105340.0,0.1898614]
[1750256470927,4.91800627,105350.0,105340.0,0.38332725]
[1750256471135,4.91800748,105350.0,105340.0,0.39282004]
[1750256471334,0.07771155,105350.0,105340.0,0.41180499]
[1750256471544,0.27771125,105350.0,105340.0,0.50800675]
[1750256471939,0.27771125,105350.0,105340.0,0.33356675]
[1750256472170,4.92629862,105350.0,105340.0,0.30508901]
[1750256472400,4.68882219,105340.0,105330.0,0.21836016]
[1750256472561,0.00949352,105330.0,105320.0,0.19939023]
[1750256472765,0.23888701,105320.0,105300.0,0.18990221]
[1750256472978,4.91477348,105320.0,105310.0,0.05218132]
[1750256473181,4.91477348,105320.0,105310.0,0.42603257]
[1750256473387,4.90527879,105320.0,105310.0,0.22662132]
[1750256473824,4.90527879,105320.0,105310.0,0.00014132]
[1750256474031,4.70588647,105320.0,105310.0,0.19955239]
[1750256474238,4.64487671,105320.0,105310.0,0.3147847]
[1750256474594,4.64487671,105320.0,105310.0,0.5412647]
[1750256474796,0.2,105340.0,105320.0,0.21836505]
[1750256474920,4.68686525,105340.0,105330.0,0.40225386]
[1750256475128,4.69635795,105340.0,105330.0,0.40225386]
[1750256475323,4.69635795,105340.0,105330.0,0.39276052]
[1750256475541,4.70585083,105340.0,105330.0,0.22785386]
[1750256475741,4.68518525,105340.0,105330.0,0.45429386]
[1750256476049,4.90352484,105340.0,105330.0,0.43530709]
[1750256476231,4.90520738,105340.0,105330.0,0.25141321]
[1750256476377,4.72062219,105340.0,105330.0,0.44480007]
[1750256476890,4.72362219,105340.0,105330.0,0.44480007]
[1750256477243,0.003,105340.0,105330.0,0.54104183]
[1750256477496,0.007,105340.0,105330.0,0.54104183]
[1750256479592,0.007,105340.0,105330.0,0.36664183]
[1750256479776,0.0284802,105330.0,105320.0,0.20887063]
[1750256480041,0.0284802,105330.0,105320.0,0.49846114]
[1750256480042,0.05148659,105330.0,105320.0,0.49846114]
[1750256480265,4.627144,105330.0,105320.0,0.49846114]
[1750256480483,4.634144,105340.0,105330.0,0.21836025]
[1750256480700,4.67712949,105340.0,105330.0,0.30510867]
[1750256480915,4.67712895,105340.0,105330.0,0.31460201]
[1750256481139,4.627144,105340.0,105330.0,0.31460201]
[1750256481574,4.627144,105340.0,105330.0,0.54100201]
[1750256481803,4.627144,105340.0,105330.0,0.31460201]
[1750256482012,0.004,105340.0,105330.0,0.54100201]
[1750256482888,0.006,105340.0,105330.0,0.54100201]
[1750256483570,0.01549225,105340.0,105330.0,0.54100201]
[1750256483772,0.006,105340.0,105330.0,0.54100201]
[1750256484009,0.206,105340.0,105330.0,0.54100201]
[1750256484231,0.21549234,105340.0,105330.0,0.28612118]
[1750256484442,4.85148323,105340.0,105330.0,0.53122867]
[1750256484655,4.88248323,105340.0,105330.0,0.52173506]
[1750256484867,4.88248323,105340.0,105330.0,0.29561506]
[1750256485078,4.88248323,105340.0,105330.0,0.54072228]
[1750256485308,4.88248323,105340.0,105330.0,0.32409571]
[1750256485510,4.8609763,105340.0,105330.0,0.55970905]
[1750256485718,4.66162183,105340.0,105330.0,0.55970905]
[1750256486624,4.64263634,105340.0,105330.0,0.55970905]
[1750256486995,4.66162147,105340.0,105330.0,0.55970905]
[1750256487201,4.87046891,105340.0,105330.0,0.55017571]
[1750256487430,4.86097657,105340.0,105330.0,0.18987942]
[1750256487692,0.01898875,105320.0,105310.0,0.2703433]
[1750256487893,4.858144,105330.0,105320.0,0.21838098]
[1750256488154,4.627144,105330.0,105320.0,0.31462274]
[1750256488406,0.006,105340.0,105330.0,0.21836025]
[1750256488655,0.004,105340.0,105330.0,0.31460201]
[1750256488849,4.627144,105350.0,105340.0,0.2183395]
[1750256489087,4.627144,105360.0,105350.0,0.21831877]
[1750256489301,0.028531,105370.0,105360.0,0.21829806]
[1750256489302,0.04751037,105370.0,105360.0,0.21829806]
[1750256489508,0.25700028,105370.0,105360.0,0.49831063]
[1750256489710,0.2,105370.0,105360.0,0.49831063]
[1750256489916,4.627144,105370.0,105360.0,0.55007063]
[1750256490345,0.01912053,105370.0,105360.0,0.55007063]
[1750256490550,0.20963071,105370.0,105360.0,0.55007063]
[1750256490763,0.2096308,105370.0,105360.0,0.55007063]
[1750256491017,0.00014116,105370.0,105360.0,0.55007063]
[1750256491726,0.00214116,105370.0,105360.0,0.55007063]
[1750256491950,0.00214116,105370.0,105360.0,0.61407063]
[1750256492162,0.00214116,105370.0,105360.0,0.43983063]
[1750256492368,0.00214116,105370.0,105360.0,0.55003063]
[1750256492609,0.00414116,105370.0,105360.0,0.55003063]
[1750256492819,0.00414116,105370.0,105360.0,0.38803063]
[1750256493248,0.00414116,105370.0,105360.0,0.61403063]
[1750256494083,0.00414116,105370.0,105360.0,0.37579063]
[1750256494300,0.00414116,105370.0,105360.0,0.54995063]
[1750256494505,0.00414116,105370.0,105360.0,0.58105063]
[1750256494715,0.00414116,105370.0,105360.0,0.61395063]
[1750256495183,0.00414116,105370.0,105360.0,0.58105063]
[1750256496034,0.00414116,105370.0,105360.0,0.54995063]
[1750256496922,0.01363071,105370.0,105360.0,0.54995063]
[1750256497145,0.23190769,105370.0,105360.0,0.34731829]
[1750256497366,0.00414116,105370.0,105360.0,0.54041982]
[1750256497986,0.02312062,105370.0,105360.0,0.54041982]
[1750256498120,0.02312071,105370.0,105360.0,0.54041982]
[1750256498335,0.00414116,105370.0,105360.0,0.54041982]
[1750256499027,0.00414116,105370.0,105360.0,0.57311982]
[1750256499233,0.00414116,105370.0,105360.0,0.60381982]
[1750256499445,0.00414116,105370.0,105360.0,0.57311982]
[1750256499657,0.01363071,105370.0,105360.0,0.31453982]
[1750256499862,0.23190769,105370.0,105360.0,0.29555829]
[1750256500044,0.0326108,105370.0,105360.0,0.54987081]
[1750256500278,0.02312071,105370.0,105360.0,0.54987081]
[1750256500519,0.00414116,105370.0,105360.0,0.54987081]
[1750256500717,0.01363071,105370.0,105360.0,0.54987081]
[1750256500860,0.03261017,105370.0,105360.0,0.54987081]
[1750256501048,0.00414116,105370.0,105360.0,0.54987081]
[1750256501464,0.00414116,105370.0,105360.0,0.61137081]
[1750256502710,0.00414116,105370.0,105360.0,0.62591166]
[1750256503577,0.00414116,105370.0,105360.0,0.96591166]
[1750256504464,0.00014116,105370.0,105360.0,0.96591166]
[1750256504879,0.00114116,105370.0,105360.0,0.96591166]
[1750256505083,0.00114116,105370.0,105360.0,0.62587166]
[1750256505283,0.00114116,105370.0,105360.0,0.36917166]
[1750256505498,0.00114116,105370.0,105360.0,0.42093166]
[1750256505700,0.00114116,105370.0,105360.0,0.54979081]
[1750256505907,0.00114116,105370.0,105360.0,0.32403081]
[1750256506122,0.25990778,105370.0,105360.0,0.28606712]
[1750256506347,0.47222859,105370.0,105360.0,0.05176]
[1750256506576,4.89937259,105370.0,105360.0,0.22576]
[1750256506807,0.20882652,105350.0,105340.0,0.43684671]
[1750256507098,0.21835971,105330.0,105320.0,0.19939214]
[1750256507354,0.40886601,105330.0,105320.0,0.3473939]
[1750256507591,0.42785368,105330.0,105320.0,0.2956339]
[1750256507854,0.42785368,105330.0,105320.0,0.53084832]
[1750256508070,0.2284802,105330.0,105320.0,0.54034256]
[1750256508269,0.43734738,105330.0,105320.0,0.53084832]
[1750256508482,4.86871118,105330.0,105320.0,0.32196176]
[1750256508694,4.86871118,105330.0,105320.0,0.53284868]
[1750256508908,4.85921739,105330.0,105320.0,0.09824176]
[1750256509118,4.85921739,105330.0,105320.0,0.33345663]
[1750256509319,4.85921739,105330.0,105320.0,0.53284886]
[1750256509521,4.84972342,105330.0,105320.0,0.09824176]
[1750256509736,4.88072342,105330.0,105320.0,0.05376]
[1750256510155,4.88072342,105330.0,105320.0,0.17596]
[1750256510614,4.88172342,105330.0,105320.0,0.17396]
[1750256510812,0.20888665,105320.0,105310.0,0.22789477]
[1750256511018,4.83603092,105320.0,105310.0,0.33805856]
[1750256511226,4.86813092,105320.0,105310.0,0.52151424]
[1750256511437,4.87762534,105320.0,105310.0,0.33805856]
[1750256511646,4.87762534,105320.0,105310.0,0.53096992]
[1750256511647,4.86813092,105320.0,105310.0,0.53096992]
[1750256511908,4.86813092,105320.0,105310.0,0.30528992]
[1750256512126,4.86813092,105320.0,105310.0,0.00014132]
[1750256512356,4.86813092,105320.0,105290.0,0.27572476]
[1750256512357,0.40892623,105300.0,105290.0,0.0001]
[1750256512576,0.39943001,105300.0,105290.0,0.32206176]
[1750256512775,4.63664022,105300.0,105290.0,0.54050495]
[1750256512901,4.64613617,105300.0,105290.0,0.54050495]
[1750256513108,0.2,105300.0,105290.0,0.54050432]
[1750256513313,4.63663986,105300.0,105290.0,0.54050432]
[1750256513542,4.64613599,105300.0,105290.0,0.54050432]
[1750256513719,0.22848839,105300.0,105290.0,0.54050432]
[1750256513919,0.21899199,105300.0,105290.0,0.31478432]
[1750256514177,0.22848821,105300.0,105290.0,0.54146432]
[1750256514417,0.43741489,105300.0,105290.0,0.36754513]
[1750256514632,4.85506303,105300.0,105290.0,0.54146513]
[1750256514803,4.89372055,105300.0,105290.0,0.54146513]
[1750256515338,4.89372055,105300.0,105290.0,0.55096216]
[1750256515519,4.69429036,105300.0,105290.0,0.5604591]
[1750256515934,4.88422388,105300.0,105290.0,0.09734176]
[1750256516127,4.92713153,105300.0,105290.0,0.0011]
[1750256516323,4.92713153,105300.0,105290.0,0.05266]
[1750256517494,4.90672775,105300.0,105290.0,0.24161156]
[1750256517711,4.87672775,105300.0,105290.0,0.25110913]
[1750256517896,4.87023162,105300.0,105290.0,0.25110913]
[1750256518108,4.87023162,105300.0,105290.0,0.05166]
[1750256518764,4.96277862,105300.0,105290.0,0.05166]
[1750256518995,4.96277862,105300.0,105290.0,0.0001]
[1750256519411,5.05902038,105300.0,105290.0,0.0001]
[1750256519628,4.96277862,105300.0,105290.0,0.0001]
[1750256519955,4.89877862,105300.0,105290.0,0.05166]
[1750256520463,4.8892246,105300.0,105290.0,0.1279122]
[1750256520702,4.8892246,105300.0,105290.0,0.34735089]
[1750256520908,4.87972829,105300.0,105290.0,0.14790176]
[1750256521118,4.91022829,105300.0,105290.0,0.05166]
[1750256522056,4.72587729,105300.0,105290.0,0.05166]
[1750256523578,4.75837729,105300.0,105290.0,0.05166]
[1750256523792,4.75837729,105300.0,105290.0,0.0001]
[1750256525067,0.25315356,105300.0,105290.0,0.37204291]
[1750256525273,0.24365752,105300.0,105290.0,0.54022486]
[1750256525513,0.005,105300.0,105290.0,0.67947706]
[1750256525915,0.005,105300.0,105290.0,1.03401791]
[1750256526797,0.003,105300.0,105290.0,1.03401791]
[1750256527177,0.004,105300.0,105290.0,1.03401791]
[1750256527605,0.004,105300.0,105290.0,1.03501791]
[1750256527810,0.00014108,105320.0,105310.0,0.63534256]
[1750256528024,0.00014108,105320.0,105310.0,1.13366432]
[1750256528864,0.00014108,105320.0,105310.0,1.00978432]
[1750256529072,4.442793,105370.0,105360.0,0.2277716]